bitfinex/quotes_BTCUSD_20250420
["timestamp","ask_amount","ask_price","bid_price","bid_amount"]
[1745167891203,0.04770768,84388.0,84376.0,1.21728]
[1745167896120,0.04770768,84388.0,84377.0,0.13144]
[1745167900866,0.04770768,84388.0,84378.0,1.21724]
[1745167905579,0.04770768,84388.0,84379.0,0.1314]
[1745167910281,0.04770768,84388.0,84380.0,1.21724]
[1745167915224,0.04770768,84388.0,84381.0,0.1314]
[1745167917113,0.0497,84386.0,84381.0,0.1314]
[1745167917897,0.21711044,84385.0,84381.0,0.1314]
[1745167918119,0.0947,84384.0,84382.0,0.1314]
[1745167918321,0.0947,84382.0,84380.0,1.21724]
[1745167918663,0.001,84384.0,84380.0,1.21724]
[1745167918664,0.21711075,84381.0,84380.0,1.21724]
[1745167918904,0.21711075,84381.0,84380.0,1.34864]
[1745167919091,0.21811075,84381.0,84380.0,1.34864]
[1745167920054,0.21811075,84381.0,84380.0,1.68864]
[1745167925903,0.21711075,84381.0,84380.0,1.68864]
[1745167934598,0.21711075,84381.0,84380.0,1.34868]
[1745167944829,0.04998541,84389.0,84380.0,1.34868]
[1745167945035,0.11944791,84388.0,84380.0,1.34868]
[1745167945676,0.12241059,84388.0,84380.0,1.34868]
[1745167951342,0.00012262,84389.0,84380.0,1.39618]
[1745167953592,0.00012262,84389.0,84381.0,0.34]
[1745167954020,0.00012262,84389.0,84381.0,0.341]
[1745167959049,0.00012262,84389.0,84381.0,0.34]
[1745167959491,0.00012262,84389.0,84380.0,0.0465]
[1745167962512,0.00012262,84389.0,84376.0,0.0462]
[1745167962725,0.00012262,84389.0,84372.0,0.0493]
[1745167962855,0.00012262,84389.0,84374.0,0.1]
[1745167963256,1e-08,84389.0,84380.0,0.34]
[1745167963793,1e-08,84389.0,84380.0,0.341]
[1745167964003,1e-08,84389.0,84380.0,0.34]
[1745167965392,1e-08,84389.0,84381.0,1.34856]
[1745167965594,1e-08,84392.0,84381.0,1.34856]
[1745167965774,4.498e-05,84392.0,84381.0,1.34856]
[1745167968945,4.498e-05,84392.0,84382.0,0.0499]
[1745167969421,0.048,84406.0,84382.0,0.0499]
[1745167969621,0.11944791,84405.0,84382.0,0.0499]
[1745167970041,0.04804498,84406.0,84385.0,0.1]
[1745167970246,4.498e-05,84406.0,84385.0,0.1]
[1745167970456,4.498e-05,84406.0,84390.0,0.19886855]
[1745167970687,0.0474,84407.0,84385.0,0.11944791]
[1745167970899,0.0481208,84419.0,84390.0,0.24416855]
[1745167971106,0.0481208,84419.0,84394.0,0.1]
[1745167971305,0.0004208,84419.0,84398.0,0.1]
[1745167971803,0.0004208,84419.0,84398.0,0.10871416]
[1745167972007,0.0004208,84419.0,84399.0,0.1]
[1745167972149,0.0004208,84419.0,84400.0,0.19886855]
[1745167973040,0.0004208,84419.0,84401.0,0.0453]
[1745167973423,0.0004208,84419.0,84402.0,0.047]
[1745167975339,0.0004208,84419.0,84403.0,1.34836]
[1745167976799,0.0004208,84419.0,84404.0,0.34]
[1745167980329,0.0004208,84419.0,84402.0,0.047]
[1745167980662,0.0004208,84419.0,84402.0,0.16644791]
[1745167981850,0.0944,84416.0,84402.0,0.11944791]
[1745167985330,0.0944,84416.0,84404.0,0.34]
[1745167988936,0.0944,84416.0,84402.0,0.11944791]
[1745167990146,0.03531463,84416.0,84402.0,0.11944791]
[1745167990830,0.01239463,84416.0,84402.0,0.11944791]
[1745167995255,0.0004208,84417.0,84403.0,1.34804]
[1745167998311,0.0004208,84417.0,84403.0,0.13124]
[1745167999255,0.0004208,84417.0,84398.0,0.0089411]
[1745167999256,0.19886855,84413.0,84398.0,0.0089411]
[1745167999485,0.0952,84409.0,84398.0,0.0089411]
[1745167999702,0.0472,84407.0,84386.0,0.26021622]
[1745167999894,0.002962,84406.0,84391.0,0.1]
[1745168001843,0.0488,84405.0,84391.0,0.1]
[1745168002006,0.002962,84404.0,84391.0,0.1]
[1745168003049,0.0488,84405.0,84392.0,0.34]
[1745168003266,0.002962,84404.0,84392.0,0.34]
[1745168004610,0.002962,84404.0,84391.0,0.00905649]
[1745168004826,0.002962,84404.0,84391.0,0.1]
[1745168005026,0.0488,84405.0,84391.0,0.1]
[1745168005239,0.0488,84402.0,84393.0,0.34]
[1745168005639,0.0488,84400.0,84394.0,0.13128]
[1745168005836,0.0496,84397.0,84392.0,1.21692]
[1745168006036,0.0496,84397.0,84393.0,0.13128]
[1745168006037,0.0496,84396.0,84393.0,0.13128]
[1745168006275,0.046,84395.0,84392.0,1.21692]
[1745168006454,0.21801015,84395.0,84394.0,0.13128]
[1745168006804,0.12341015,84395.0,84394.0,0.13128]
[1745168007423,0.12341015,84395.0,84368.0,0.0008414]
[1745168007563,0.3222787,84395.0,84368.0,0.0008414]
[1745168007927,0.0756,84393.0,84368.0,0.0008414]
[1745168008206,0.0756,84391.0,84368.0,0.0008414]
[1745168008423,0.12241099,84390.0,84368.0,0.0008414]
[1745168008616,0.0956,84389.0,84368.0,0.0008414]
[1745168008915,0.0956,84387.0,84368.0,0.0008414]
[1745168009121,0.64875195,84386.0,84368.0,0.0008414]
[1745168009321,0.30286221,84378.0,84368.0,0.0008414]
[1745168009494,0.17201138,84377.0,84368.0,0.00088637]
[1745168009705,0.046,84376.0,84368.0,0.00088637]
[1745168009904,0.046,84374.0,84368.0,0.00088637]
[1745168010102,0.12241138,84373.0,84368.0,0.00088637]
[1745168010512,0.12341138,84373.0,84368.0,0.00088637]
[1745168011094,0.12241138,84373.0,84368.0,0.00088637]
[1745168011437,0.12341138,84373.0,84368.0,0.00088637]
[1745168015321,0.12341138,84373.0,84369.0,1.34864]
[1745168018372,0.11944791,84373.0,84369.0,1.34864]
[1745168018540,0.00296318,84372.0,84369.0,1.21732]
[1745168018743,0.00296318,84372.0,84370.0,0.13132]
[1745168019140,0.11944791,84371.0,84370.0,0.13132]
[1745168036047,0.11944791,84371.0,84370.0,1.34892]
[1745168036451,0.11944791,84371.0,84370.0,0.13132]
[1745168036849,0.11944791,84371.0,84331.0,0.01454085]
[1745168037197,0.0029633,84370.0,84354.0,0.1]
[1745168037337,0.12241121,84370.0,84354.0,0.1]
[1745168042024,0.046,84374.0,84354.0,0.1]
[1745168042222,0.0496,84377.0,84360.0,0.19871063]
[1745168042426,0.046,84385.0,84361.0,0.0937]
[1745168042578,0.00296279,84384.0,84361.0,0.0937]
[1745168042901,0.046,84392.0,84362.0,0.1]
[1745168043047,0.11944791,84388.0,84362.0,0.1]
[1745168043449,0.11944791,84388.0,84362.0,0.10012262]
[1745168044907,0.046,84392.0,84363.0,0.11944791]
[1745168045085,0.046,84392.0,84364.0,0.34]
[1745168045248,0.046,84392.0,84366.0,0.34]
[1745168047445,0.00296258,84388.0,84366.0,0.34]
[1745168055224,0.12241049,84388.0,84367.0,1.34868]
[1745168057356,0.12241049,84388.0,84367.0,0.13128]
[1745168057823,0.12241049,84388.0,84362.0,0.00012262]
[1745168058022,0.12241049,84388.0,84362.0,0.10012262]
[1745168060789,0.11944791,84388.0,84362.0,0.10012262]
[1745168060995,0.0457,84394.0,84363.0,0.11944791]
[1745168061224,0.0486626,84394.0,84369.0,0.0456]
[1745168061425,0.0486626,84394.0,84373.0,0.1]
[1745168064055,0.0486626,84394.0,84373.0,0.10872544]
[1745168064637,0.0007229,84389.0,84373.0,0.10872544]
[1745168065258,0.0007229,84389.0,84374.0,1.34856]
[1745168069054,0.0007229,84389.0,84373.0,0.00872544]
[1745168069349,0.0007229,84389.0,84373.0,0.1]
[1745168073127,0.0007229,84389.0,84373.0,0.10876888]
[1745168073967,0.0488,84388.0,84373.0,0.00876888]
[1745168074290,0.0007229,84389.0,84363.0,0.11944791]
[1745168074291,0.0488,84386.0,84363.0,0.11944791]
[1745168074441,0.0488,84386.0,84369.0,0.1]
[1745168075300,0.0488,84386.0,84370.0,1.34848]
[1745168076647,0.00296261,84385.0,84371.0,0.34]
[1745168080752,0.00296261,84385.0,84369.0,0.1]
[1745168085252,0.00296261,84385.0,84370.0,1.34852]
[1745168085531,0.0004208,84422.0,84385.0,0.0961]
[1745168085741,0.0004208,84422.0,84408.0,0.09407614]
[1745168085942,0.05580565,84429.0,84409.0,0.00236906]
[1745168086069,0.00256132,84428.0,84408.0,0.09407614]
[1745168086277,0.00256132,84428.0,84398.0,0.09407614]
[1745168086278,0.05570565,84426.0,84398.0,0.09407614]
[1745168086473,0.00216416,84425.0,84398.0,0.09407614]
[1745168087246,0.00221214,84425.0,84398.0,0.09407614]
[1745168088741,0.00221214,84425.0,84399.0,0.34]
[1745168089047,0.0492,84424.0,84399.0,0.34]
[1745168089345,0.00216416,84423.0,84399.0,0.34]
[1745168089577,0.00216416,84423.0,84399.0,0.34880958]
[1745168090863,0.22506478,84450.0,84399.0,0.34880958]
[1745168091079,0.4166,84439.0,84399.0,0.34880958]
[1745168091297,0.4162,84439.0,84399.0,0.34880958]
[1745168091514,0.0004,84438.0,84399.0,0.34880958]
[1745168091896,0.0004,84438.0,84400.0,0.00236921]
[1745168093830,0.0944,84437.0,84400.0,0.00236921]
[1745168093970,0.0004,84436.0,84400.0,0.00236921]
[1745168095522,0.0004,84436.0,84401.0,1.34812]
[1745168095790,0.0004,84436.0,84402.0,0.34]
[1745168095918,0.4162,84435.0,84402.0,0.34]
[1745168096124,0.0004,84434.0,84402.0,0.34]
[1745168096660,0.0004,84434.0,84403.0,0.00236921]
[1745168096840,0.11944791,84433.0,84411.0,0.09407614]
[1745168097061,0.0004,84432.0,84411.0,0.09407614]
[1745168097413,0.11944791,84431.0,84411.0,0.09407614]
[1745168097579,0.0004,84430.0,84411.0,0.09407614]
[1745168097791,0.11944791,84429.0,84411.0,0.09407614]
[1745168097991,0.0004,84428.0,84411.0,0.09407614]
[1745168098295,0.11944791,84427.0,84411.0,0.09407614]
[1745168098471,0.0004,84426.0,84411.0,0.09407614]
[1745168098679,0.11944791,84425.0,84411.0,0.09407614]
[1745168098888,0.0004,84424.0,84411.0,0.09407614]
[1745168099222,0.11944791,84423.0,84411.0,0.09407614]
[1745168099430,0.0004,84422.0,84411.0,0.09407614]
[1745168105438,0.0004,84422.0,84412.0,1.21676]
[1745168108782,0.0004,84422.0,84413.0,0.1312]
[1745168112352,0.21254791,84421.0,84414.0,0.1312]
[1745168112565,0.0004,84420.0,84412.0,1.21676]
[1745168112739,0.11944791,84419.0,84412.0,1.21676]
[1745168112940,0.0004,84418.0,84413.0,0.1312]
[1745168113237,0.11944791,84417.0,84413.0,0.1312]
[1745168113395,0.0004,84416.0,84413.0,0.1312]
[1745168113599,0.11944791,84415.0,84413.0,0.1312]
[1745168113802,0.0004,84414.0,84413.0,0.1312]
[1745168114021,0.11984791,84414.0,84413.0,0.1312]
[1745168114225,0.12084791,84414.0,84413.0,0.1312]
[1745168115250,0.12084791,84414.0,84413.0,0.13124798]
[1745168128995,0.11984791,84414.0,84413.0,0.13124798]
[1745168132563,0.16934791,84414.0,84413.0,0.13124798]
[1745168132794,0.21924791,84414.0,84413.0,0.13124798]
[1745168133963,0.63544791,84414.0,84413.0,0.13124798]
[1745168134297,0.63504791,84414.0,84413.0,0.13124798]
[1745168134942,0.58654791,84414.0,84413.0,0.13124798]
[1745168139676,0.58654791,84414.0,84413.0,1.3482]
[1745168142539,0.5589383,84414.0,84413.0,1.3482]
[1745168147789,0.53564791,84414.0,84413.0,1.3482]
[1745168156808,0.53564791,84414.0,84413.0,1.34816]
[1745168166072,0.53564791,84414.0,84413.0,1.34916]
[1745168199918,0.53564791,84414.0,84413.0,1.34824]
[1745168211437,0.53564791,84414.0,84413.0,1.21704]
[1745168211663,0.53564791,84414.0,84413.0,1.34824]
[1745168213941,0.53564791,84414.0,84413.0,1.21704]
[1745168214136,0.58124791,84414.0,84413.0,1.34824]
[1745168218985,0.53564791,84414.0,84413.0,1.34824]
[1745168219784,0.53564791,84414.0,84413.0,1.21704]
[1745168220130,0.53564791,84414.0,84413.0,1.34824]
[1745168227911,0.53564791,84414.0,84413.0,1.68824]
[1745168246376,0.53564791,84414.0,84413.0,1.34816]
[1745168250670,0.53564791,84414.0,84413.0,1.68816]
[1745168312916,0.11944791,84414.0,84413.0,1.68816]
[1745168315795,0.11944791,84414.0,84413.0,1.34812]
[1745168321903,0.11984791,84414.0,84413.0,1.34812]
[1745168323089,0.11944791,84414.0,84413.0,1.34812]
[1745168328394,0.4162,84422.0,84413.0,1.34812]
[1745168328613,0.11944791,84421.0,84413.0,1.34812]
[1745168329478,0.0004,84420.0,84413.0,1.34812]
[1745168329771,0.11944791,84419.0,84413.0,1.34812]
[1745168330057,0.0004,84418.0,84413.0,1.34812]
[1745168330386,0.11944791,84417.0,84413.0,1.34812]
[1745168330655,0.0004,84416.0,84413.0,1.34812]
[1745168330855,0.11944791,84415.0,84413.0,1.34812]
[1745168333965,0.11944791,84415.0,84414.0,0.34]
[1745168348226,0.11944791,84415.0,84414.0,0.47108]
[1745168352672,0.11944791,84415.0,84414.0,0.34]
[1745168353016,0.11944791,84415.0,84414.0,0.13108]
[1745168359637,0.11944791,84415.0,84414.0,1.348]
[1745168396705,0.4162,84422.0,84414.0,1.348]
[1745168396906,0.11944791,84421.0,84415.0,0.13104]
[1745168402107,0.11944791,84421.0,84416.0,0.34]
[1745168406473,0.11944791,84421.0,84417.0,1.21692]
[1745168411186,0.11944791,84421.0,84418.0,0.13104]
[1745168412808,0.0004,84420.0,84418.0,0.13104]
[1745168413032,0.11944791,84419.0,84418.0,0.13104]
[1745168419055,0.11944791,84419.0,84417.0,1.21692]
[1745168419267,0.11944791,84419.0,84418.0,0.13104]
[1745168423739,0.11944791,84419.0,84418.0,0.47104]
[1745168435221,0.11944791,84419.0,84418.0,0.13104]
[1745168437527,0.11944791,84419.0,84418.0,1.34796]
[1745168438897,0.11944791,84419.0,84418.0,1.68796]
[1745168449210,0.11944791,84419.0,84418.0,1.55692]
[1745168449408,0.11944791,84419.0,84418.0,1.68796]
[1745168450902,0.53564791,84419.0,84418.0,1.68796]
[1745168456874,0.53564791,84419.0,84418.0,1.55692]
[1745168457107,0.58264791,84419.0,84418.0,1.68792]
[1745168458618,0.58264791,84419.0,84418.0,1.34792]
[1745168459044,0.53564791,84419.0,84418.0,1.34792]
[1745168483000,0.53564791,84419.0,84418.0,1.68792]
[1745168497866,0.53564791,84419.0,84418.0,1.68792]
[1745168503053,0.53564791,84419.0,84418.0,1.68788]
[1745168519871,0.53422225,84419.0,84418.0,1.68788]
[1745168526078,0.53422225,84419.0,84418.0,1.34788]
[1745168528750,0.53422225,84419.0,84418.0,1.68788]
[1745168566063,0.53422225,84419.0,84418.0,1.68788]
[1745168585385,0.53422225,84419.0,84418.0,1.6878]
[1745168591324,0.53422225,84419.0,84418.0,0.34]
[1745168592483,0.53422225,84419.0,84418.0,1.6878]
[1745168617465,0.53422225,84419.0,84418.0,1.3478]
[1745168623641,0.53422225,84419.0,84418.0,1.6878]
[1745168636288,0.53422225,84419.0,84418.0,1.7347]
[1745168639174,0.53422225,84419.0,84418.0,1.6878]
[1745168650658,0.4162,84419.0,84418.0,1.6888]
[1745168651875,0.40698,84419.0,84418.0,1.6888]
[1745168652069,0.39254,84419.0,84418.0,1.6888]
[1745168653525,0.39254,84419.0,84418.0,1.69773511]
[1745168656340,0.39254,84437.0,84418.0,1.35773511]
[1745168656544,0.11944791,84436.0,84419.0,0.00236884]
[1745168659996,0.11944791,84436.0,84418.0,1.35673511]
[1745168659997,0.0004,84435.0,84418.0,1.35673511]
[1745168660226,0.11944791,84434.0,84418.0,1.35673511]
[1745168660419,0.0004,84433.0,84418.0,1.35673511]
[1745168660648,0.11944791,84432.0,84418.0,1.35673511]
[1745168660857,0.0004,84431.0,84418.0,1.35673511]
[1745168661026,0.11944791,84430.0,84418.0,1.35673511]
[1745168662080,0.11944791,84430.0,84419.0,0.00236884]
[1745168662883,0.11944791,84430.0,84418.0,1.35673511]
[1745168668955,0.11944791,84430.0,84419.0,0.00236885]
[1745168669543,0.11944791,84430.0,84418.0,1.35673511]
[1745168676105,0.11944791,84430.0,84419.0,0.00236885]
[1745168676307,0.11944791,84430.0,84418.0,1.35673511]
[1745168679592,0.11944791,84430.0,84419.0,0.1308]
[1745168679593,0.0462,84428.0,84419.0,0.1308]
[1745168679803,0.16634791,84426.0,84418.0,1.21692]
[1745168680013,0.13398876,84419.0,84418.0,1.21692]
[1745168680215,0.22748876,84419.0,84418.0,1.34772]
[1745168680426,0.22848876,84419.0,84418.0,1.34772]
[1745168680627,0.39254,84417.0,84398.0,0.01912118]
[1745168680825,0.01454085,84403.0,84399.0,0.1308]
[1745168681041,0.11944791,84400.0,84380.0,0.0008418]
[1745168681255,0.11944791,84398.0,84380.0,0.0008418]
[1745168681453,0.0004,84397.0,84385.0,0.1308]
[1745168681625,0.11944791,84396.0,84385.0,0.1308]
[1745168681833,0.0004,84395.0,84385.0,0.1308]
[1745168682182,0.11944791,84394.0,84385.0,0.1308]
[1745168682294,0.0004,84393.0,84385.0,0.1308]
[1745168682505,0.11944791,84392.0,84385.0,0.1308]
[1745168682708,0.0004,84391.0,84385.0,0.1308]
[1745168682956,0.11944791,84390.0,84385.0,0.1308]
[1745168683149,0.0004,84389.0,84385.0,0.1308]
[1745168683329,0.11944791,84388.0,84385.0,0.1308]
[1745168683525,0.0004,84387.0,84385.0,0.1308]
[1745168683752,0.11944791,84386.0,84385.0,0.1308]
[1745168685382,0.11944791,84386.0,84385.0,1.34776]
[1745168695071,0.16694791,84386.0,84385.0,1.34776]
[1745168695275,0.16734791,84386.0,84385.0,1.34776]
[1745168695475,0.16734791,84386.0,84385.0,1.3478]
[1745168695476,0.16834791,84386.0,84385.0,1.3478]
[1745168696516,0.56088791,84386.0,84385.0,1.3478]
[1745168696718,0.56048791,84386.0,84385.0,1.3478]
[1745168699608,0.57502876,84386.0,84385.0,1.3478]
[1745168701277,0.62482876,84386.0,84385.0,1.3478]
[1745168702253,0.62482876,84386.0,84385.0,1.21696]
[1745168702500,0.62482876,84386.0,84385.0,1.3478]
[1745168704011,0.62482876,84386.0,84385.0,1.21696]
[1745168704187,0.62482876,84386.0,84385.0,1.3478]
[1745168708273,0.01454085,84383.0,84380.0,0.0008418]
[1745168708606,0.13398876,84381.0,84380.0,0.0008418]
[1745168708903,0.13398876,84381.0,84380.0,1.3492818]
[1745168709111,0.13538876,84381.0,84380.0,1.3492818]
[1745168711903,0.52708696,84381.0,84380.0,1.3492818]
[1745168712217,0.52668696,84381.0,84380.0,1.3492818]
[1745168713622,0.51114611,84381.0,84380.0,1.3492818]
[1745168739623,0.57248696,84381.0,84380.0,1.3492818]
[1745168741312,0.57348696,84381.0,84380.0,1.3492818]
[1745168746485,0.91348696,84381.0,84380.0,1.34856]
[1745168746696,0.57348696,84381.0,84380.0,1.34856]
[1745168757963,0.57248696,84381.0,84380.0,1.34856]
[1745168765921,0.52568696,84381.0,84380.0,1.34856]
[1745168769132,0.52568696,84381.0,84380.0,1.3486]
[1745168769568,0.52568696,84381.0,84380.0,1.3496]
[1745168769753,0.51114611,84381.0,84380.0,1.3496]
[1745168770880,0.51114611,84381.0,84380.0,1.36311272]
[1745168778030,0.51114611,84381.0,84380.0,1.36211272]
[1745168780224,0.52568696,84381.0,84380.0,1.3486]
[1745168780399,0.52568696,84381.0,84380.0,1.34852]
[1745168781303,0.52454606,84381.0,84380.0,1.34852]
[1745168810054,0.52454606,84381.0,84380.0,1.21768]
[1745168810288,0.52454606,84381.0,84380.0,1.34852]
[1745168810715,0.53563259,84381.0,84380.0,1.34852]
[1745168818733,0.53563259,84381.0,84380.0,1.21768]
[1745168818948,0.53563259,84381.0,84380.0,1.34852]
[1745168823400,0.55780158,84381.0,84380.0,1.34852]
[1745168826301,0.53563259,84381.0,84380.0,1.34852]
[1745168826697,0.53563259,84381.0,84380.0,1.21776]
[1745168826899,0.53563259,84381.0,84380.0,1.34856]
[1745168827110,0.55780158,84381.0,84380.0,1.34856]
[1745168827586,0.53563259,84381.0,84380.0,1.34856]
[1745168828637,0.55780158,84381.0,84380.0,1.34856]
[1745168830881,0.53563259,84381.0,84380.0,1.34856]
[1745168831983,0.55780158,84381.0,84380.0,1.34856]
[1745168832383,0.53563259,84381.0,84380.0,1.34856]
[1745168833043,0.55780158,84381.0,84380.0,1.34856]
[1745168833666,0.53563259,84381.0,84380.0,1.34856]
[1745168840323,0.52109174,84381.0,84380.0,1.34856]
[1745168840807,0.51000521,84381.0,84380.0,1.34856]
[1745168843558,0.51000521,84381.0,84380.0,1.36529537]
[1745168856857,0.51000521,84381.0,84380.0,1.34856]
[1745168857053,0.60630521,84381.0,84380.0,1.34856]
[1745168858435,0.60630521,84381.0,84380.0,1.21776]
[1745168858636,0.60630521,84381.0,84380.0,1.34856]
[1745168859335,0.60630521,84381.0,84380.0,1.21776]
[1745168859541,0.60630521,84381.0,84380.0,1.34856]
[1745168859941,0.62084606,84381.0,84380.0,1.34856]
[1745168860159,0.62084606,84381.0,84380.0,1.21776]
[1745168860455,0.62184606,84381.0,84380.0,1.34856]
[1745168860665,0.0963,84374.0,84346.0,0.0008422]
[1745168860777,0.11944791,84359.0,84347.0,1.34848]
[1745168860984,0.0963,84357.0,84347.0,1.34848]
[1745168861225,0.11984791,84356.0,84347.0,1.34848]
[1745168861424,0.11984791,84356.0,84348.0,0.1308]
[1745168862364,0.11984791,84356.0,84348.0,0.13092262]
[1745168864479,0.3916982,84355.0,84348.0,0.13092262]
[1745168864651,0.11944791,84354.0,84348.0,0.13092262]
[1745168869568,0.11984791,84354.0,84348.0,0.13092262]
[1745168870184,0.3916982,84353.0,84348.0,0.13092262]
[1745168870359,0.11944791,84352.0,84348.0,0.13092262]
[1745168874455,0.16684791,84352.0,84348.0,0.13092262]
[1745168876014,0.3916982,84351.0,84348.0,0.13092262]
[1745168876192,0.11944791,84350.0,84348.0,0.13092262]
[1745168877007,0.11944791,84350.0,84348.0,0.00012262]
[1745168877222,0.11944791,84350.0,84349.0,0.13084]
[1745168881954,0.51114611,84350.0,84349.0,0.13084]
[1745168885705,0.51114611,84350.0,84349.0,0.13184]
[1745168887712,0.11944791,84350.0,84349.0,0.13184]
[1745168889075,0.11944791,84350.0,84349.0,0.47184]
[1745168892242,0.11944791,84350.0,84349.0,0.47084]
[1745168892449,0.11944791,84350.0,84349.0,0.47184]
[1745168894055,0.11944791,84350.0,84349.0,0.47084]
[1745168904182,0.16804791,84350.0,84349.0,0.13084]
[1745168909587,0.16337223,84350.0,84349.0,0.13084]
[1745168916637,0.55507043,84350.0,84349.0,0.13084]
[1745168918276,0.60327043,84350.0,84349.0,0.13084]
[1745168918534,0.0467,84349.0,84348.0,0.00012262]
[1745168918773,0.21474791,84349.0,84348.0,0.13096262]
[1745168920154,0.60644611,84349.0,84348.0,0.13096262]
[1745168920356,0.60604611,84349.0,84348.0,0.13096262]
[1745168936379,0.60604611,84349.0,84348.0,1.34888]
[1745168948751,0.51114611,84349.0,84348.0,1.34888]
[1745168971404,0.55814611,84349.0,84348.0,1.34888]
[1745168971606,0.60444611,84349.0,84348.0,1.34888]
[1745168997545,0.55744611,84349.0,84348.0,1.34888]
[1745169010333,0.60564611,84349.0,84348.0,1.34888]
[1745169014724,0.60207879,84349.0,84348.0,1.34888]
[1745169027594,0.60207879,84349.0,84348.0,1.3488]
[1745169033881,0.01,84340.0,84328.0,0.04903182]
[1745169034040,0.11944791,84339.0,84328.0,0.04948178]
[1745169034449,0.11944791,84339.0,84328.0,0.05048178]
[1745169034848,0.11944791,84339.0,84329.0,0.00237109]
[1745169035275,0.11944791,84339.0,84330.0,1.3488]
[1745169035544,0.11944791,84339.0,84331.0,0.00237109]
[1745169035784,0.11944791,84339.0,84331.0,0.34237109]
[1745169035945,0.11944791,84339.0,84331.0,0.34]
[1745169036149,0.11944791,84339.0,84332.0,0.00237109]
[1745169039683,0.11944791,84339.0,84333.0,0.13076]
[1745169039867,0.11944791,84339.0,84334.0,0.00237111]
[1745169044356,0.11944791,84339.0,84335.0,1.218]
[1745169044496,0.11944791,84339.0,84336.0,0.0023711]
[1745169049286,0.11944791,84339.0,84337.0,0.13076]
[1745169049471,0.11944791,84339.0,84338.0,0.0023711]
[1745169054043,0.11944791,84339.0,84338.0,1.2203711]
[1745169054197,0.11944791,84339.0,84338.0,1.218]
[1745169055167,0.11944791,84339.0,84338.0,1.34876]
[1745169063510,0.16814791,84339.0,84338.0,1.34876]
[1745169069185,0.16814791,84339.0,84338.0,1.3488]
[1745169077515,0.21354791,84339.0,84338.0,1.3488]
[1745169077729,0.60524611,84339.0,84338.0,1.21804]
[1745169077932,0.60524611,84339.0,84338.0,1.3488]
[1745169078427,0.60624611,84339.0,84338.0,1.3488]
[1745169083564,0.60524611,84339.0,84338.0,1.3488]
[1745169123224,0.60524611,84339.0,84338.0,1.21804]
[1745169123428,0.60524611,84339.0,84338.0,1.3488]
[1745169124750,0.55984611,84339.0,84338.0,1.3488]
[1745169172362,0.01,84340.0,84338.0,1.3488]
[1745169172562,0.01,84340.0,84339.0,0.00237102]
[1745169172997,0.01,84340.0,84339.0,0.00337102]
[1745169176481,0.01,84340.0,84339.0,0.34337102]
[1745169176663,0.01,84340.0,84339.0,0.341]
[1745169180967,0.01,84340.0,84339.0,0.34]
[1745169194627,0.01,84340.0,84328.0,0.01836949]
[1745169194834,0.01,84340.0,84329.0,0.00237107]
[1745169195180,0.01,84340.0,84330.0,1.21796]
[1745169195388,0.01,84340.0,84331.0,0.00237107]
[1745169201404,0.01,84340.0,84321.0,0.01454085]
[1745169201601,0.01,84340.0,84323.0,0.1]
[1745169201824,0.01,84340.0,84324.0,0.34237101]
[1745169202046,0.01,84340.0,84324.0,0.34]
[1745169202857,0.01,84340.0,84331.0,0.34]
[1745169203149,0.01,84340.0,84332.0,0.00237094]
[1745169203150,0.00526731,84340.0,84332.0,0.00237094]
[1745169203570,0.00526731,84340.0,84332.0,0.00337094]
[1745169205329,0.0955,84349.0,84333.0,1.3486]
[1745169205534,0.0955,84349.0,84334.0,0.00237093]
[1745169215720,0.0474,84348.0,84334.0,0.00237093]
[1745169225260,0.0474,84348.0,84335.0,1.34852]
[1745169225466,0.0474,84348.0,84336.0,0.00237097]
[1745169229848,0.0474,84348.0,84337.0,0.00237097]
[1745169230129,0.0474,84348.0,84331.0,0.00237097]
[1745169235307,0.0474,84348.0,84332.0,1.34848]
[1745169235511,0.0457,84347.0,84333.0,0.00237098]
[1745169235822,0.0475,84346.0,84333.0,0.00237098]
[1745169239842,0.0475,84346.0,84334.0,0.002371]
[1745169240038,0.0475,84346.0,84331.0,0.002371]
[1745169245436,0.0475,84346.0,84332.0,1.34852]
[1745169245585,0.0475,84346.0,84333.0,0.00237101]
[1745169247640,0.0495,84345.0,84333.0,0.00237101]
[1745169248176,0.0458,84344.0,84333.0,0.00237101]
[1745169251914,0.0458,84344.0,84334.0,0.00237103]
[1745169252132,0.0458,84344.0,84325.0,0.00237103]
[1745169252376,0.0458,84344.0,84327.0,0.1]
[1745169252619,0.00543772,84344.0,84331.0,0.01454085]
[1745169252839,0.02137,84345.0,84336.0,0.1]
[1745169253062,0.00457,84345.0,84337.0,0.00237068]
[1745169253273,0.3916982,84367.0,84337.0,0.00237068]
[1745169253485,0.11944791,84366.0,84337.0,0.00237068]
[1745169255281,0.11944791,84366.0,84340.0,0.19843942]
[1745169255944,0.0458,84365.0,84340.0,0.19843942]
[1745169256204,0.0952,84363.0,84340.0,0.19843942]
[1745169256425,0.11944791,84362.0,84340.0,0.19843942]
[1745169256627,0.0908,84356.0,84340.0,0.00875449]
[1745169256825,0.0456,84355.0,84340.0,0.00875449]
[1745169257002,0.0456,84355.0,84338.0,1.34848]
[1745169261130,0.0456,84355.0,84333.0,0.01454085]
[1745169261365,0.0456,84355.0,84336.0,0.1]
[1745169263093,0.0486,84354.0,84336.0,0.1]
[1745169263297,0.0957,84352.0,84335.0,0.1]
[1745169263486,0.0957,84348.0,84324.0,0.11944791]
[1745169263870,0.0471,84342.0,84331.0,0.1]
[1745169265053,0.0471,84337.0,84331.0,0.1]
[1745169265358,0.0471,84337.0,84332.0,1.3484]
[1745169268188,0.0471,84337.0,84324.0,0.11944791]
[1745169268331,0.0471,84337.0,84329.0,0.1]
[1745169270190,0.0471,84337.0,84325.0,0.34]
[1745169270397,0.0471,84337.0,84328.0,0.1]
[1745169270601,0.0471,84337.0,84325.0,0.34]
[1745169270799,0.0471,84337.0,84327.0,0.1]
[1745169271738,0.0491,84336.0,84327.0,0.1]
[1745169271934,0.0472,84335.0,84327.0,0.1]
[1745169274304,0.0472,84335.0,84325.0,0.34]
[1745169274502,0.0472,84335.0,84326.0,0.1]
[1745169275463,0.0472,84335.0,84327.0,1.34848]